Cogmind - Beta 16 @@@ ROGUE MODE // 2025.10.22 @ 02:57:30 Player: shapeshifter Result: Destroyed by Autobeam Turret with Autobeam Performance ------------- Evolutions (0) 0 Regions Visited (2) 400 Robots Destroyed (26) 130 Value Destroyed (658) 658 Prototype IDs (0) 0 Alien Tech Used (0) 0 Bonus (0) 0 TOTAL SCORE: 1188 Bonus ------- None Cogmind --------- Core Integrity 0/250 Matter 300/300 Energy 117/125 System Corruption 2% Temperature Cool (6) Movement Rolling (110) Ox2 Location -10/Subcaves Parts ------- > --- POWER (1) -------- Light Ion Engine > --- PROPULSION (2) --- Wheel Subdweller Monowheel > --- UTILITY (2) ------ Scrap Shield > --- WEAPON (2) ------- Subdweller Laser Makeshift Laser > --- INVENTORY (5) ---- Large Battery (200) Subdweller Optics Riot Gun Subdweller Laser Enhanced Flamer Peak State ------------ > --- POWER ------------ Subdweller Power Source > --- PROPULSION ------- Subdweller Monowheel Subdweller Monowheel > --- UTILITY ---------- Scrap Shield > --- WEAPON ----------- Riot Gun Makeshift Laser > --- INVENTORY -------- Subdweller Power Source Large Battery Assault Rifle Subdweller Shrapnel Launcher Enhanced Flamer [Rating: 17] Favorites ----------- Power Light Ion Engine Engine Light Ion Engine Propulsion Light Treads Treads Light Treads Wheel Subdweller Monowheel Utility Large Storage Unit Device Subdweller Optics Storage Large Storage Unit Protection Scrap Shield Weapon Light Assault Rifle Energy Gun Makeshift Laser Ballistic Gun Light Assault Rifle Build | -11 -10 -10 ------- Run | Yrd Mat Sub Slots Evolved . | . . . Power . | . . . Propulsion . | . . . Utility . | . . . Weapon . | . . . Parts Attached 34 | 5 6 23 Power 6 | 1 1 4 Engine 6 | 1 1 4 Core . | . . . Reactor . | . . . Propulsion 9 | 1 2 6 Treads 3 | 1 2 . Leg . | . . . Wheel 6 | . . 6 Hover . | . . . Flight . | . . . Utility 8 | 1 1 6 Device 1 | . . 1 Storage 3 | 1 1 1 Processor . | . . . Hackware . | . . . Protection 4 | . . 4 Artifact . | . . . Weapon 11 | 2 2 7 Energy Gun 3 | . . 3 Energy Cannon . | . . . Ballistic Gun 8 | 2 2 4 Ballistic Cannon . | . . . Launcher . | . . . Special Weapon . | . . . Impact Weapon . | . . . Slashing Weapon . | . . . Piercing Weapon . | . . . Special Melee Weapon . | . . . Unidentified Prototypes . | . . . Parts Lost 6 | . 1 5 Power 3 | . 1 2 Propulsion 1 | . . 1 Utility 2 | . . 2 Weapon . | . . . Highest Loss Streak 3 | . 1 3 To Critical Strikes . | . . . Average Backups 8 | 3 8 8 Power . | . . . Propulsion 1 | 1 2 1 Utility 1 | . 1 1 Weapon 4 | . 4 4 Tool/Special . | . . . Unused Backups 11 | . 1 10 Power 1 | . . 1 Propulsion 1 | . . 1 Utility 1 | . . 1 Weapon 8 | . 1 7 Tool/Special . | . . . Average Slot Usage (%) 86 | . 84 86 Engine 13 | . 13 12 Treads 16 | . 28 12 Wheel 10 | . . 14 Storage 10 | . 14 8 Protection 5 | . . 8 Energy Gun 7 | . . 10 Ballistic Gun 20 | . 28 17 Peak Build Rating 17 | 5 7 17 Average Rating 10 | 4 6 12 On Entrance 4 | . 5 7 Avg Prop Armor Cover (%) 1 | . . 1 Naked Turns . | . . . Heaviest Build 56 | 10 25 56 Greatest Support 40 | 20 40 40 Greatest Overweight (x) 7 | . . 7 Average Overweight (x) . | . . . Largest Inventory Capacity 20 | 8 15 20 Average Capacity 12 | 7 13 12 Most Carried 15 | 5 13 15 Average Carried 8 | 3 8 8 Final Capacity 15 | 8 15 5 Final Carried 10 | 5 10 5 Class Distribution -------------------- 72% | Mutant 24% | Subdweller-Mutant Dominant Class ---------------- Mutant | -10/Materials Mutant | -10/Subcaves Resources | -11 -10 -10 ----------- Run | Yrd Mat Sub Matter Collected 1010 | 236 153 621 Remotely . | . . . Salvage Created 879 | 11 264 604 Parts 56 | 3 17 36 Haulers Intercepted 1 | . 1 . Recyclers Shooed . | . . . Parts Field Recycled . | . . . Retrieved Matter . | . . . Parts Self-Destructed 24 | . . 24 Prevented . | . . . Parts Restored . | . . . Kills | -11 -10 -10 ------- Run | Yrd Mat Sub Combat Hostiles Destroyed 24 | . 7 17 Guns 24 | . 7 17 Classes Destroyed 5 | 1 3 1 Tunneler 1 | 1 . . Hauler 1 | . 1 . Swarmer 10 | . 3 7 Grunt 4 | . 4 . Subdweller 10 | . . 10 Best Kill Streak 4 | 1 3 4 Combat Bots Only 4 | . 3 4 Max Kills in Single Turn 2 | 1 1 2 Gunslinging 1 | . . 1 Exploded . | . . . Melee . | . . . Uniques/NPCs Destroyed . | . . . Combat | -11 -10 -10 -------- Run | Yrd Mat Sub Hostile Shots Fired 180 | . 55 125 Missed 53 | . 13 40 Hits 127 | . 42 85 Projectile 127 | . 42 85 AOE 1 | . . 1 Critical Strikes 4 | . . 4 Damage Taken 1724 | . 398 1326 Core 255 | . 71 184 Absorbed by Shields . | . . . Ignored by Resistances 2 | . . 2 Core Remaining (%) 100 | 100 . . Volleys Fired 169 | 2 42 125 Largest 2 | 2 2 2 Hottest 150 | 40 40 150 Shots Fired 310 | 4 85 221 Gun 310 | 4 85 221 Cannon . | . . . Launcher . | . . . Special . | . . . Kinetic 219 | 4 85 130 Thermal 91 | . . 91 Explosive . | . . . Electromagnetic . | . . . Robot Hit Streak 17 | 3 10 17 Robot Miss Streak 5 | . 5 3 Penetration Max . | . . . Secondary Targets 4 | . 1 3 Max Gunslinging Chain 1 | . 1 1 Shots Hit Robots 154 | 3 48 103 Core Hits 53 | 2 20 31 Critical Kills . | . . . Critical Parts Destroyed . | . . . Critical Strikes 3 | . . 3 Burn 3 | . . 3 Melee Attacks . | . . . Impact . | . . . Slashing . | . . . Piercing . | . . . Sneak Attacks . | . . . Combat Hostiles . | . . . Follow-up Attacks . | . . . Damage Inflicted 2088 | 25 389 1674 Guns 2088 | 25 389 1674 Cannons . | . . . Explosions . | . . . Melee . | . . . Ramming . | . . . Kinetic 1464 | 25 389 1050 Thermal 624 | . . 624 Explosive . | . . . Electromagnetic . | . . . Impact . | . . . Slashing . | . . . Piercing . | . . . Highest Corruption 2 | . 2 2 Average Corruption 2 | . 2 2 Corruption Purged . | . . . Corruption Blocked . | . . . Effects 49 | . 10 39 Message Errors 11 | . 1 10 Matter Fused 15 | . 4 11 Heat Flow Errors 6 | . 2 4 Energy Discharges 5 | . 1 4 Parts Fused 1 | . . 1 Data Loss (minor) 4 | . . 4 Data Loss (major) 2 | . 1 1 Misfires 2 | . 1 1 Weapon Failures 3 | . . 3 Overload Shots 1 | . . 1 Overflow Damage . | . . . Projectiles . | . . . Explosions . | . . . Melee . | . . . Knockbacks . | . . . Impact . | . . . Kinetic . | . . . Secondary . | . . . Self-Inflicted Damage . | . . . Shots . | . . . Rammed . | . . . Targets Rammed . | . . . Kicked . | . . . Crushed . | . . . Highest Temperature 247 | . 219 247 Average Temperature 66 | . 52 87 Received Heat Transfer 303 | . 99 204 Siege Activations . | . . . Martial Activations . | . . . Shielding Activations . | . . . Robots Disrupted . | . . . Combat Hostiles . | . . . Robots Corrupted . | . . . Combat Hostiles . | . . . Parts Fried . | . . . Impact Corruptions . | . . . Robots Melted . | . . . Combat Hostiles . | . . . Parts Melted 2 | . . 2 Heat Transferred 1494 | . . 1494 Parts Sabotaged . | . . . Parts Stolen . | . . . Parts Stripped . | . . . Power Chain Reactions . | . . . Alert | -11 -10 -10 ------- Run | Yrd Mat Sub Maximum Alert Level . | . . . Low Security (%) 100 | 100 100 . Level 1 . | . . . Level 2 . | . . . Level 3 . | . . . Level 4 . | . . . Level 5 . | . . . High Security . | . . . Max Security . | . . . Peak Influence 78 | 5 78 . Initial . | . . . Average 17 | . 19 . Influence Increases 441 | 5 226 210 Destroy 0b10 Robot/C 280 | . 140 140 Destroy 0b10 Robot/NC 10 | 5 5 . Destroy Leader 52 | . 42 10 Successful Hack 9 | . 9 . Select Force Hacks 30 | . 30 . Lose Combat Pursuer 60 | . . 60 Influence Decreases 351 | 5 226 120 Time Decay 331 | 5 216 110 Lost Part 20 | . 10 10 Squads Dispatched 3 | . 3 . Investigation 3 | . 3 . Extermination . | . . . Reinforcement . | . . . Assault . | . . . Garrison . | . . . Intercept . | . . . Searches Triggered . | . . . Construction Impeded . | . . . Haulers Reinforced . | . . . Active Scanning Responses . | . . . Cargo Convoy Interrupts . | . . . Stealth | -11 -10 -10 --------- Run | Yrd Mat Sub Distress Signals . | . . . Communications Jammed . | . . . Distress Signals . | . . . Times Spotted 32 | . 13 19 Peak Tracking Total 6 | . 4 6 Tactical Retreats 3 | . . 3 Traps | -11 -10 -10 ------- Run | Yrd Mat Sub Traps Triggered 2 | . 2 . Indirectly . | . . . Trap Hack Attempts . | . . . Triggered . | . . . Disarmed . | . . . Reprogrammed . | . . . Reused . | . . . Traps Extracted . | . . . Installed . | . . . Triggered . | . . . Machines | -11 -10 -10 ---------- Run | Yrd Mat Sub Machines Disabled . | . . . Max in Single Turn . | . . . Machines Repaired . | . . . Machines Dismantled . | . . . Machines Sabotaged . | . . . Overloaded Fab Kills . | . . . Hacking | -11 -10 -10 --------- Run | Yrd Mat Sub Machines Accessed 7 | . 7 . Terminals 6 | . 6 . Fabricators . | . . . Repair Stations . | . . . Recycling Units 1 | . 1 . Scanalyzers . | . . . Garrison Access . | . . . Total Hacks 17 | . 17 . Successful 10 | . 10 . Failed 7 | . 7 . Catastrophic 1 | . 1 . Database Lockouts . | . . . Manual 15 | . 15 . Terminals 15 | . 15 . Fabricators . | . . . Repair Stations . | . . . Recycling Units 2 | . 2 . Scanalyzers . | . . . Garrison Access . | . . . Terminal Hacks . | . . . Fabricator Hacks . | . . . Repair Station Hacks . | . . . Recycling Unit Hacks 1 | . 1 . Retrieve Components 1 | . 1 . Scanalyzer . | . . . Garrison Access Hacks . | . . . Unauthorized Hacks 9 | . 9 . Terminals 8 | . 8 . Botnet 3 | . 3 . Skim 5 | . 5 . Fabricators . | . . . Repair Stations . | . . . Recycling Units 1 | . 1 . Tunnel 1 | . 1 . Scanalyzers . | . . . Garrison Access . | . . . Data Cores Recovered . | . . . Used . | . . . Hacking Detections 6 | . 6 . Full Trace Events . | . . . Feedback Events . | . . . Feedback Blocked . | . . . Robot Schematics Acquired . | . . . Robots Built . | . . . Authchips . | . . . Time . | . . . Total Robot Build Rating . | . . . Part Schematics Acquired . | . . . Parts Built . | . . . Authchips . | . . . Time . | . . . Total Part Build Rating . | . . . Part Studies Acquired . | . . . Parts Repaired . | . . . Time . | . . . Parts Recycled . | . . . Recycled Matter . | . . . Retrieved Matter . | . . . Retrieved Components 10 | . 10 . Parts Scanalyzed . | . . . Part Schematics Acquired . | . . . Parts Damaged . | . . . Bothacking | -11 -10 -10 ------------ Run | Yrd Mat Sub Used RIF Installer . | . . . Robots Hacked . | . . . Non-combat . | . . . Combat . | . . . Robot Hacks Applied . | . . . Relay Couplers Released . | . . . Fabnet Peak Effective % . | . . . Robots Rewired . | . . . Allies Hacked . | . . . Hacks Repelled . | . . . Allies | -11 -10 -10 -------- Run | Yrd Mat Sub Total Allies . | . . . Largest Group . | . . . Highest-Rated Group . | . . . Highest-Rated Ally . | . . . Total Orders . | . . . Ally Attacks . | . . . Total Damage . | . . . Kills . | . . . Allies Corrupted . | . . . Allies Melted . | . . . Intel | -11 -10 -10 ------- Run | Yrd Mat Sub Active Infowar (turns) 39 | . . 39 Optics 39 | . . 39 Robot Analysis Total . | . . . Derelict Logs Recovered 3 | . . 3 Drone Launches . | . . . Drone Recoveries . | . . . Exploration | -11 -10 -10 ------------- Run | Yrd Mat Sub Turns Passed 3730 | 81 1044 2605 Spaces Moved 1993 | 45 299 1649 Core 11 | 9 . 2 Treads 980 | 36 299 645 Legs . | . . . Wheels 1002 | . . 1002 Hover . | . . . Flight . | . . . Fastest Speed 50 | 50 160 95 Average Speed 134 | 138 160 129 Slowest Speed 400 | 160 160 400 Overloaded Moves . | . . . Propulsion Burnouts . | . . . Robots Hopped . | . . . Potential Cave-ins . | . . . Cave-ins Triggered . | . . . Exploration Rate (%) 51 | 4 69 80 Regions Visited 2 Branch Regions 1 Pre-discovered Areas 4 | . 2 2 Known Exits Taken 1 | . 1 . Unknown Exits Taken 1 | 1 . . Scrap Searched 4 | . . 4 Spaces Dug . | . . . Terrain Destroyed . | . . . Melee . | . . . Projectile . | . . . AOE . | . . . Terrain Rammed . | . . . Walls Destroyed . | . . . Machines Disabled . | . . . Actions | -11 -10 -10 --------- Run | Yrd Mat Sub Total 2763 | 61 798 1904 Wait 496 | . 436 60 Move 1991 | 44 298 1649 Hop . | . . . Pick Up 43 | 10 11 22 Fast Attach 11 | . 1 10 Attach 13 | 5 2 6 Detach . | . . . Swap 11 | . 3 8 Drop 27 | . 5 22 Fire 169 | 2 42 125 Melee . | . . . Ram . | . . . Kick . | . . . Crush . | . . . Escape Stasis . | . . . Rewire . | . . . Trap . | . . . Miscellaneous 2 | . . 2 Route ------- -11/Scrapyard -10/Materials (discovered 5 exits: *Mat x3 / [*Min] / *Sub) -10/Subcaves (discovered 2 exits: [*Mat x2]) History --------- Turn | Location | Event 46 | -11/Scrapyard | Discovered new exit (range 14) 82 | -11/Scrapyard | Entered Materials 225 | -10/Materials | Discovered new exit (range 8) 312 | -10/Materials | Build established: Mutant 531 | -10/Materials | Discovered new exit (range 10) 749 | -10/Materials | Identified exit to Subcaves 826 | -10/Materials | Identified exit to Materials 946 | -10/Materials | Learned Storage terminal intel 982 | -10/Materials | Derelicts attacked the area 989 | -10/Materials | Learned Storage trap positions 1099 | -10/Materials | Learned location of Subcaves (-10) 1126 | -10/Materials | Entered Subcaves 1127 | -10/Subcaves | Approached by a straggling Scientist 1309 | -10/Subcaves | Discovered new exit (range 7) 1317 | -10/Subcaves | Shifting Twisted Machinery released Piercing Trap 1359 | -10/Subcaves | Shifting Twisted Machinery released Flamer 1374 | -10/Subcaves | Discovered new exit (range 11) 1434 | -10/Subcaves | Learned location of Zion (-7) 2174 | -10/Subcaves | A swath of the cavern ceiling suddenly collapsed 2245 | -10/Subcaves | Core integrity fell below 50% 2379 | -10/Subcaves | Learned Materials security intel 2575 | -10/Subcaves | Build established: Subdweller-Mutant 2708 | -10/Subcaves | Shifting Twisted Machinery released Riot Gun 2764 | -10/Subcaves | Shifting Twisted Machinery released Sub. Beam Cannon 2957 | -10/Subcaves | A swath of the cavern ceiling suddenly collapsed 2989 | -10/Subcaves | Learned location of Storage (-8) 3272 | -10/Subcaves | Lost 3 parts (1p1n1u) 3305 | -10/Subcaves | Build established: Mutant 3314 | -10/Subcaves | Core integrity fell below 20% 3480 | -10/Subcaves | Shifting Twisted Machinery released Battle Cannon 3529 | -10/Subcaves | Shifting Twisted Machinery released Enh. Flamer 3705 | -10/Subcaves | Build established: Subdweller-Mutant 3731 | -10/Subcaves | Destroyed by Autobeam Turret with Autobeam Last Messages --------------- 03482_ RN5YJBBVX/,/LF CNS18 03525_ Sub. Power Source shoots sparks and powers down. Enh. Flamer falls loose from the Twisted Machinery. 03538_ System corrupted: Sub. Laser failed to cycle. 03569_ Dropped Broken Sub. Power Source. 03570_ Acquired Lgt. Ion Engine. 03622_ System corrupted: Component data lost. 03635_ S-10 Pest destroyed. 03640_ Lgt. Ion Engine fries itself beyond repair. 03641_ Acquired 10 matter. 03650_ Flight Unit fries itself beyond repair. 03662_ S-10 Pest destroyed. 03669_ 16-ZLX(u) tweaks Twisted Machinery. 03716_ Sub. Monowheel shoots sparks and powers down. Map ----- +----------------------------------------------------+ | ???#"""" ##??????????????????????????????????????? | | ???#"""" #???????????????????????????????????????? | | ##?##""" ##??????????????????????????????????????? | | ##?#""" #??????????????????????????????????????? | | ###"" #??????????????????????????????????????? | | "" #??????????????????????????????????????? | | " #??????????????????????????????????????? | | " "" #??????????????????????????????????????? | | """" ## ##??????????????????????????????????????? | | " ############?????????????????????????????????? | | """ #?####"""""#?????????????????????????????????? | | #?#" """#??????????????????????????????????? | | #?#"" "##????????????????? ????????????????? | | ### ##????????????????? ????????????????? | | #?????????????????? ????????????????? | | ####?????????????? ?????????????????? | | #?????????????? ??????????????????? | | ##????????????? ??????????????????? | | ## ## ##?????????????? ???????????????????? | | ?# ## ##?????????????? ##"?????????????????? | | ?# ##?????????????? ""??????????????????? | | ## #??###???????? ""??????????????????? | | #### #??###### "#?????????????????# | | ### #### %# ""#""""# "????????? | | # ###?## ## % %"" t"?????????? | | # #???# %@ !% ; ????????? | | #???# ## #" ! #;# ????????????? | | # ##???##### ##;##;;#????????????????? | | ###??????## ## ###;#???"#???????????????? | | #???????## #####?""#????????????????????? | | #????##### ####???"##??###??????????????? | | #????# ### ## #####"####"#####??????????? | | #????# ##### ##"""#"""""##"##?????????? | | # ##?#### #???## "# "#""###"# " #?????????? | | # ##?## ### ##??## ##"#"""##" # "" "#?????????? | | # #?# ## #### ####""###### #####?????????? | | #??# [ ## # #??####?###"###????????????? | | ##??#[![ ##???????#"#"#"#????????????? | | ###### [= ## ##????????#"""""#????####????? | | ###?# [ =![ #######????###?##"##"#???## #????? | | #???# *[[ ##??# ????# ###"#####???# #????? | | ##### =! ] ###???? ##??# """#???????# ##????? | | ## = ##??????# ##?# ##"#??????## #?????? | | ### #?????## ### ####??????# ##????? | | #?## #?????# ## ##????????# #???? | | ##?## #?????# "" #######??# #???? | | ##### #?????## #### ##?#"" | | ### ##?????# ## ## #?# " | | ### #?????# #######"" | | ### #?????## ## ^ % ##??#""# | +----------------------------------------------------+ Best States ------------- Heat Dissipation 25 Energy Generation 15 Energy Capacity 200 Matter Stores 300 Matter Capacity 300 Sight Range 21 Terrain Scan Density 10 Armor Coverage 800 Resistance: TH 10 Evasion (%) 50 Recoil Reduction 2 Item Schematics ----------------- None Robot Schematics ------------------ None Fabricated ------------ Nothing Repaired ---------- Nothing Studied --------- None Alien Tech Used ----------------- None Achievements -------------- DATA ERROR: Steam Global Achievement% I Have A Map? Organ Harvest Spot Them First Survival Of The Most Covered Challenges ------------ None Game ------ Seed ComponentDecoySuperbattery Manual? 0 Play Time 00:20:01 Cumulative 406.7 hours Start 2025.10.22 @ 02:37:20 End 2025.10.22 @ 02:57:30 Sessions 1 Manual Loads 0 Difficulty Rogue Special Mode None Game No. 525 Rogue 525 Adventurer 0 Explorer 0 Win Type - Total 12 Types 6/0/1/2/1/0/2/0/0/0 Lore% 88 Gallery% 83 Achievement% 40 Wizard Run 0 Options --------- Layout 1 ASCII 0 Keyboard 0 Movement Mouse Keybinds 0 Fullscreen 1 Font 24/Proggy Map View 50x40 Zoom Use 0% Tactical HUD 1 Map Filters NONE Filters NONE Steam 1 RUN: 6d4226bd-d301-43f0-9cbf-904566073bae